bitfinex-derivatives/quotes_ETHF0:USTF0_20260312
["timestamp","ask_amount","ask_price","bid_price","bid_amount"]
[1773349772881,0.63548151,2064.6,2064.3,0.58661951]
[1773349773481,0.55254324,2064.8,2064.3,0.58661951]
[1773349773975,0.53054324,2064.8,2064.6,0.022]
[1773349774171,7.514,2065.1,2064.6,0.022]
[1773349774172,0.55254324,2065.0,2064.6,0.022]
[1773349774576,0.55254324,2064.8,2064.6,0.02660469]
[1773349774782,0.57454324,2064.9,2064.6,0.6132242]
[1773349778692,0.25758568,2064.9,2064.6,0.6132242]
[1773349778987,0.25758568,2064.9,2064.6,0.5912242]
[1773349779187,0.23558568,2064.9,2064.7,0.022]
[1773349780692,0.02627341,2065.0,2064.7,0.022]
[1773349780891,0.57881665,2065.0,2064.7,0.60861951]
[1773349781287,0.57881665,2065.0,2064.7,0.022]
[1773349783297,0.5851609,2065.2,2064.7,0.59568636]
[1773349783493,0.5851609,2065.2,2064.7,0.57368636]
[1773349783694,0.5631609,2065.2,2065.0,0.022]
[1773349783889,0.5631609,2065.2,2064.8,0.022]
[1773349784500,0.61123923,2065.2,2064.8,0.022]
[1773349786001,0.61123923,2065.2,2064.8,0.59568636]
[1773349791701,8.14123923,2065.2,2064.8,0.59568636]
[1773349793101,0.55481827,2065.1,2064.8,0.59568636]
[1773349797504,7.57807833,2065.2,2064.8,0.59568636]
[1773349797808,0.55481827,2065.1,2064.8,0.59568636]
[1773349798408,8.1328966,2065.2,2064.8,0.59568636]
[1773349798608,8.1388966,2065.2,2064.8,0.59568636]
[1773349799211,0.55481827,2065.1,2064.6,0.02660469]
[1773349799410,0.62081827,2065.1,2064.6,0.57304371]
[1773349801118,0.066,2065.1,2064.6,0.57304371]
[1773349802112,8.0968966,2065.2,2064.7,0.54643902]
[1773349802113,0.00407833,2065.2,2064.7,0.54643902]
[1773349802513,0.5368966,2065.5,2065.1,0.54643902]
[1773349802812,11.58837651,2065.8,2065.1,0.54643902]
[1773349802813,0.55481827,2065.4,2065.1,0.54643902]
[1773349803015,0.00407833,2065.3,2065.1,0.54643902]
[1773349803213,0.55481827,2065.4,2065.1,0.54643902]
[1773349803415,0.56078346,2065.4,2065.1,0.54643902]
[1773349806916,0.00596519,2065.4,2065.1,0.54643902]
[1773349807123,0.57681827,2065.5,2065.1,0.54643902]
[1773349807420,0.022,2065.5,2065.1,0.54643902]
[1773349807622,0.57681827,2065.5,2065.1,0.54643902]
[1773349807811,0.022,2065.5,2065.1,0.54643902]
[1773349808223,0.02696776,2065.5,2065.1,0.54643902]
[1773349809418,4.04837651,2066.0,2065.1,0.54643902]
[1773349809620,0.55481827,2065.9,2065.1,0.54643902]
[1773349810016,0.53281827,2065.9,2065.5,0.56843902]
[1773349810522,0.53746874,2065.9,2065.5,0.56843902]
[1773349810720,0.58146874,2065.9,2065.5,0.56843902]
[1773349821732,0.04865047,2065.9,2065.5,0.56843902]
[1773349822629,0.62398151,2065.9,2065.5,0.56843902]
[1773349824027,0.62398151,2065.9,2065.3,0.022]
[1773349824228,0.57533104,2065.7,2065.3,0.58938838]
[1773349836045,0.57533104,2065.7,2065.3,0.022]
[1773349836542,0.57533104,2065.7,2065.3,0.58938838]
[1773349837146,0.57533104,2065.7,2065.1,0.022]
[1773349837347,6.07866579,2065.7,2065.1,0.022]
[1773349837644,0.57533104,2065.6,2065.1,0.022]
[1773349838244,6.56599683,2065.6,2065.1,0.022]
[1773349838441,0.57533104,2065.5,2065.1,0.022]
[1773349839248,0.57533104,2065.5,2064.9,0.58938838]
[1773349839538,0.57533104,2065.4,2064.9,0.58938838]
[1773349840142,0.57533104,2065.4,2064.5,0.022]
[1773349840143,0.57533104,2065.3,2064.6,0.57199307]
[1773349840743,0.57533104,2065.2,2064.6,0.57199307]
[1773349841046,0.57533104,2065.2,2064.7,0.58938838]
[1773349844145,0.56485085,2065.1,2064.7,0.58938838]
[1773349844447,0.80766085,2065.0,2064.7,0.022]
[1773349844647,0.56485085,2065.0,2064.7,0.022]
[1773349845243,0.56485085,2065.0,2064.7,0.58416991]
[1773349846446,0.56485085,2065.3,2064.7,0.58416991]
[1773349848942,0.56485085,2065.0,2064.7,0.58416991]
[1773349849148,0.56485085,2064.9,2064.6,0.00460469]
[1773349850046,0.56485085,2064.9,2064.6,0.5667746]
[1773349850248,0.56485085,2065.0,2064.6,0.5667746]
[1773349850448,0.53811646,2065.2,2064.6,0.5667746]
[1773349853751,0.53811646,2065.1,2064.6,0.5667746]
[1773349857346,0.69211646,2065.4,2064.6,0.5667746]
[1773349857546,0.154,2065.4,2064.6,0.5667746]
[1773349860056,0.154,2065.4,2064.7,0.57775003]
[1773349862354,0.53811646,2065.7,2064.7,0.57775003]
[1773349862552,0.00465047,2065.9,2064.6,0.24672469]
[1773349862553,0.53811646,2065.8,2064.9,0.57775003]
[1773349862947,0.51611646,2065.8,2065.6,0.022]
[1773349863853,0.4941164,2065.8,2065.6,0.022]
[1773349867154,0.56476693,2065.9,2065.6,0.59975003]
[1773349867350,0.56476693,2065.9,2065.6,0.022]
[1773349869160,0.80867693,2065.9,2065.6,0.022]
[1773349869361,0.78123646,2065.8,2065.6,0.022]
[1773349871261,0.53811646,2065.7,2065.4,0.022]
[1773349871861,0.78285646,2065.7,2065.4,0.022]
[1773349872061,0.53811646,2065.6,2065.4,0.022]
[1773349872363,0.53811646,2065.6,2065.2,0.59975003]
[1773349880969,0.00465047,2065.9,2065.2,0.59975003]
[1773349881165,0.00465047,2065.9,2065.1,0.24187694]
[1773349881166,0.54145722,2066.5,2065.4,0.5668289]
[1773349881465,0.51945722,2066.5,2066.3,0.022]
[1773349881665,0.49745716,2066.5,2066.1,0.022]
[1773349882066,0.54145716,2066.5,2066.1,0.022]
[1773349882270,0.54495693,2066.5,2066.1,0.02808402]
[1773349885074,0.78888722,2066.3,2066.1,0.02808402]
[1773349885269,0.78596722,2066.2,2065.9,0.5888289]
[1773349885666,0.54145722,2066.2,2065.9,0.5888289]
[1773349886269,0.54145722,2066.2,2065.9,0.59291175]
[1773349886674,0.54145722,2066.3,2065.9,0.59291175]
[1773349891677,0.60745722,2066.4,2065.9,0.59291175]
[1773349892675,0.00349977,2066.5,2065.9,0.59291175]
[1773349892878,0.00349977,2066.5,2065.9,0.57091175]
[1773349893173,0.54145722,2066.7,2066.3,0.5888289]
[1773349893174,0.52295699,2066.7,2066.3,0.5888289]
[1773349893677,0.00349977,2066.6,2066.3,0.5888289]
[1773349893880,0.54145722,2066.6,2066.3,0.5888289]
[1773349894277,0.54654387,2066.6,2066.3,0.5888289]
[1773349895672,0.54145722,2066.7,2066.3,0.5888289]
[1773349895871,0.56345722,2066.8,2066.3,0.5888289]
[1773349896677,0.56853269,2066.8,2066.3,0.5888289]
[1773349897177,0.02707547,2066.8,2066.3,0.5888289]
[1773349897378,8.19845722,2067.1,2066.3,0.5888289]
[1773349897578,8.19845722,2067.1,2066.3,0.5668289]
[1773349897776,0.54145722,2067.0,2066.7,0.5888289]
[1773349898479,0.51853702,2067.0,2066.7,0.5888289]
[1773349900284,0.54145722,2067.9,2066.9,0.5668289]
[1773349900776,0.51945722,2067.9,2067.7,0.022]
[1773349900976,0.51945722,2067.9,2067.5,0.022]
[1773349901179,0.523748,2067.9,2067.5,0.02801022]
[1773349901377,0.567748,2067.9,2067.5,0.02801022]
[1773349902482,0.567748,2067.9,2067.3,0.5888289]
[1773349902483,0.54145722,2067.7,2067.3,0.5888289]
[1773349903087,0.54145722,2067.7,2067.3,0.022]
[1773349903284,0.62945722,2067.7,2067.1,0.022]
[1773349903485,0.62945722,2067.7,2067.1,0.62359914]
[1773349906886,0.56575464,2067.5,2067.1,0.62359914]
[1773349909088,0.56575464,2067.5,2067.1,0.02801573]
[1773349909387,0.56575464,2067.5,2067.1,0.62359914]
[1773349910089,0.56575464,2067.4,2067.1,0.62359914]
[1773349910288,0.80922464,2067.4,2067.1,0.62359914]
[1773349910684,0.57181595,2067.6,2067.1,0.57607527]
[1773349912595,0.088,2067.7,2067.1,0.57607527]
[1773349914192,0.65981595,2067.7,2067.1,0.57607527]
[1773349915988,0.65981595,2067.7,2067.1,0.02801573]
[1773349916488,0.65981595,2067.7,2067.1,0.57607527]
[1773349919999,0.65981595,2067.7,2067.1,0.02801573]
[1773349921000,0.90301595,2067.7,2067.1,0.02801573]
[1773349921195,0.81594595,2067.6,2067.1,0.02801573]
[1773349921396,0.81687595,2067.5,2067.1,0.02801573]
[1773349921597,0.57181595,2067.2,2066.9,0.57005954]
[1773349922099,0.57181595,2067.1,2066.8,0.54805954]
[1773349922600,0.57181595,2067.1,2066.8,0.55265598]
[1773349922794,0.57181595,2067.1,2066.8,0.00459644]
[1773349923195,0.57181595,2067.1,2066.7,0.57005954]
[1773349924191,0.57181595,2067.4,2066.7,0.57524598]
[1773349927100,0.57181595,2067.3,2066.7,0.57524598]
[1773349931309,0.57181595,2067.3,2066.7,0.02718644]
[1773349932207,0.81553595,2067.2,2066.7,0.02718644]
[1773349932409,0.81668595,2067.1,2066.7,0.02718644]
[1773349932612,0.81654595,2067.0,2066.7,0.02718644]
[1773349932812,0.81454595,2066.9,2066.7,0.02718644]
[1773349933114,0.57181595,2066.9,2066.5,0.57005954]
[1773349934115,0.57181595,2066.9,2066.5,0.57369742]
[1773349935612,0.57181595,2066.9,2066.3,0.022]
[1773349936705,0.57181595,2066.9,2066.3,0.02827147]
[1773349941920,0.57181595,2066.9,2066.1,0.59292961]
[1773349942922,0.55504253,2066.7,2066.1,0.02682054]
[1773349943818,0.55504253,2066.7,2066.1,0.59775015]
[1773349948821,0.55504253,2066.6,2066.1,0.59775015]
[1773349953427,12.25320376,2067.1,2066.3,0.57092961]
[1773349953728,0.75304253,2067.2,2066.3,0.57092961]
[1773349954834,0.55504253,2067.1,2066.3,0.57092961]
[1773349959939,0.55504253,2067.1,2066.4,0.81364961]
[1773349960129,0.55504253,2067.1,2066.7,0.57092961]
[1773349960333,0.55504253,2067.1,2066.7,0.81517961]
[1773349960538,0.55504253,2067.1,2066.7,0.57092961]
[1773349961641,0.75304253,2067.2,2066.7,0.57092961]
[1773349962640,0.198,2067.2,2066.7,0.57092961]
[1773349963039,0.78751626,2067.2,2066.7,0.57092961]
[1773349963837,0.198,2067.2,2066.7,0.57092961]
[1773349965539,0.58951626,2067.6,2066.7,0.57092961]
[1773349965738,0.58951626,2067.5,2066.7,0.57092961]
[1773349965939,0.58951626,2067.6,2067.2,0.57488712]
[1773349966135,6.59954687,2067.8,2067.2,0.57488712]
[1773349966434,0.022,2067.6,2067.2,0.57488712]
[1773349966632,0.044,2067.6,2067.2,0.57488712]
[1773349967143,0.63351626,2067.6,2067.2,0.022]
[1773349967441,0.066,2067.5,2067.0,0.57488712]
[1773349967741,0.65551626,2067.5,2067.0,0.57488712]
[1773349968143,0.066,2067.5,2067.1,0.55288712]
[1773349968340,0.65551626,2067.5,2067.1,0.55288712]
[1773349969342,0.58951626,2067.8,2067.1,0.55288712]
[1773349969835,0.56751626,2067.8,2067.4,0.57488712]
[1773349970438,0.61151626,2067.8,2067.4,0.57488712]
[1773349972444,0.63268072,2067.8,2067.4,0.57488712]
[1773349973843,0.63268072,2067.8,2067.4,0.56397793]
[1773349974040,0.63268072,2067.8,2067.2,0.022]
[1773349974239,0.58868072,2067.6,2067.2,0.56397793]
[1773349976746,0.67668072,2067.6,2067.0,0.56397793]
[1773349978345,0.67668072,2067.6,2067.0,0.022]
[1773349978741,0.67668072,2067.6,2066.8,0.56397793]
[1773349979047,0.58868072,2067.4,2066.8,0.022]
[1773349980140,0.58868072,2067.4,2066.8,0.56397793]
[1773349980343,0.11,2067.5,2066.8,0.56397793]
[1773349980544,0.69868072,2067.5,2066.8,0.56397793]
[1773349981848,0.11,2067.5,2066.9,0.54197793]
[1773349983249,0.11,2067.5,2067.1,0.54197793]
[1773349983444,0.00429078,2067.9,2067.3,0.54197793]
[1773349983445,0.58868072,2067.8,2067.3,0.54197793]
[1773349983644,0.58868072,2067.8,2066.7,5.95058]
[1773349983645,0.00429078,2067.9,2067.5,0.54197793]
[1773349983845,6.5762743,2068.3,2067.8,0.54197793]
[1773349984141,4.0455944,2068.6,2067.8,0.54197793]
[1773349984142,0.58868072,2068.2,2067.8,0.54197793]
[1773349984340,0.58868072,2068.3,2067.8,0.54197793]
[1773349984948,0.59414093,2068.3,2067.8,0.54614018]
[1773349985548,0.00546021,2068.3,2067.8,0.54614018]
[1773349985952,0.59414093,2068.3,2067.8,0.54614018]
[1773349990348,0.58868072,2068.9,2067.9,0.54197793]
[1773349990746,0.56668072,2068.9,2068.5,0.022]
[1773349990942,0.56668072,2068.9,2068.3,0.022]
[1773349991142,4.03871363,2069.3,2068.4,0.24169]
[1773349991348,4.03871363,2069.3,2068.3,0.56397793]
[1773349991349,0.57214094,2069.0,2068.5,0.54197793]
[1773349991549,0.58868072,2069.2,2068.5,0.54197793]
[1773349991747,0.58868072,2069.2,2068.9,0.022]
[1773349991949,0.58868072,2069.2,2068.7,0.54197793]
[1773349992149,0.58868072,2069.2,2068.1,0.54197793]
[1773349993952,0.044,2068.8,2068.7,0.022]
[1773349994250,0.044,2068.8,2068.3,0.022]
[1773349994251,0.63268072,2068.8,2068.3,0.022]
[1773349994557,0.58868072,2068.6,2068.1,0.56397793]
[1773349994757,0.58868072,2068.5,2068.1,0.56397793]
[1773349995859,10.12989141,2068.4,2068.1,0.56397793]
[1773349996061,0.58868072,2068.6,2068.1,0.56397793]
[1773349996255,0.58868072,2068.5,2068.1,0.022]
[1773349996461,0.58868072,2068.5,2067.9,0.022]
[1773349996656,10.12989141,2068.4,2067.9,0.56397793]
[1773349996860,0.58868072,2068.3,2067.9,0.022]
[1773349997161,10.71857213,2068.3,2067.9,0.022]
[1773349997360,0.58868072,2068.2,2067.8,0.00416225]
[1773349997754,0.58868072,2068.0,2067.5,0.56397793]
[1773349998459,0.58868072,2067.9,2067.5,0.56397793]
[1773349998658,0.58868072,2067.9,2067.5,0.56905572]
[1773349999062,0.58868072,2067.9,2067.2,0.54197793]
[1773349999264,10.71857213,2067.7,2067.3,0.56397793]
[1773349999454,0.58868072,2067.7,2067.3,0.56397793]
[1773349999658,0.58868072,2067.7,2067.3,0.022]
[1773349999860,0.58868072,2067.5,2066.9,0.022]
[1773350000062,0.59494577,2067.5,2066.9,0.02789372]
[1773350000257,0.58868072,2067.3,2066.9,0.02789372]
[1773350000465,0.58868072,2067.3,2066.7,0.56397793]
[1773350000466,0.58868072,2067.3,2066.7,0.022]
[1773350000866,0.78547534,2067.1,2066.7,0.80814486]
[1773350001067,0.78547534,2067.1,2066.7,0.022]
[1773350001270,10.91536675,2067.1,2066.7,0.022]
[1773350001573,0.78547534,2067.0,2066.7,0.02581737]
[1773350002068,0.78547534,2067.0,2066.5,0.80814486]
[1773350002069,0.78547534,2066.9,2066.5,0.80814486]
[1773350002968,0.78547534,2066.8,2066.5,0.80814486]
[1773350003159,0.78547534,2066.8,2066.3,0.022]
[1773350003362,0.78547534,2066.8,2066.3,0.80814486]
[1773350003668,10.91536675,2066.7,2066.3,0.80814486]
[1773350003863,0.78547534,2066.7,2066.3,0.80814486]
[1773350004469,0.78547534,2066.6,2066.1,0.80814486]
[1773350005471,0.78547534,2066.6,2066.1,0.81369076]
[1773350005771,0.78547534,2066.5,2066.1,0.81369076]
[1773350008371,0.78547534,2066.4,2066.1,0.81369076]
[1773350008571,10.91536675,2066.5,2066.1,0.81369076]
[1773350009571,10.12989141,2066.5,2066.1,0.81369076]
[1773350010473,10.91536675,2066.5,2066.2,1.03025486]
[1773350010870,10.12989141,2066.4,2066.2,1.03025486]
[1773350011473,0.78547534,2066.7,2066.3,0.78614486]
[1773350012167,0.78547534,2066.7,2066.4,0.7237748]
[1773350012367,7.36900799,2066.6,2066.4,0.7237748]
[1773350012574,7.36900799,2066.6,2066.4,0.9657148]
[1773350012770,7.34111413,2066.6,2066.5,1.02886486]
[1773350012972,0.78547534,2066.9,2066.5,0.78614486]
[1773350013172,7.84047894,2066.8,2066.5,0.78614486]
[1773350013372,0.78547534,2066.8,2066.5,0.78614486]
[1773350013572,7.84047894,2066.8,2066.5,0.78614486]
[1773350013873,7.0550036,2066.8,2066.5,0.78614486]
[1773350014072,7.84047894,2066.8,2066.5,0.78614486]
[1773350014474,7.0550036,2066.8,2066.5,0.78614486]
[1773350014778,7.474,2067.2,2066.5,0.78614486]
[1773350014779,0.78547534,2067.1,2066.5,0.78614486]
[1773350014978,0.78547534,2067.0,2066.5,0.78614486]
[1773350015176,7.84047894,2067.1,2066.5,0.78614486]
[1773350015375,0.78547534,2067.1,2066.5,0.78614486]
[1773350016175,0.78547534,2066.9,2066.3,0.78614486]
[1773350017470,0.78547534,2066.8,2066.3,0.78614486]
[1773350020576,6.8128636,2066.8,2066.4,0.78614486]
[1773350021282,6.8128636,2066.8,2066.5,1.03208486]
[1773350021482,6.8128636,2066.8,2066.6,1.03295486]
[1773350022284,7.59833894,2066.8,2066.6,0.24681]
[1773350022579,6.8128636,2066.8,2066.6,0.24681]
[1773350022787,6.8128636,2066.8,2066.6,1.32588018]
[1773350024087,7.91589717,2066.8,2066.5,1.07907018]
[1773350024283,7.91589717,2066.8,2066.5,1.32192018]
[1773350024485,6.8128636,2066.8,2066.5,1.32192018]
[1773350025291,1.10303357,2066.6,2066.2,1.32033446]
[1773350025588,1.10303357,2066.6,2066.1,0.0275459]
[1773350025789,7.91589717,2066.5,2066.1,1.10661608]
[1773350025988,1.10303357,2066.5,2066.1,1.10661608]
[1773350027386,1.10303357,2066.5,2066.1,0.0275459]
[1773350028289,1.10303357,2066.4,2065.9,0.022]
[1773350028892,1.10303357,2066.4,2065.9,1.10107018]
[1773350029391,1.10303357,2066.4,2065.9,0.02662905]
[1773350030186,1.10303357,2066.2,2065.9,0.02662905]
[1773350031193,1.09009604,2066.7,2065.9,1.06288313]
[1773350031388,1.09009604,2066.6,2065.9,1.06288313]
[1773350031783,7.90295964,2066.5,2065.9,1.06288313]
[1773350031988,1.09009604,2066.5,2065.9,1.06288313]
[1773350032694,1.09009604,2066.5,2066.0,1.28205408]
[1773350033292,6.5635436,2066.4,2066.0,1.03625408]
[1773350033794,6.5635436,2066.4,2066.0,1.28658408]
[1773350034390,7.65363964,2066.4,2066.0,1.28658408]
[1773350037097,6.5635436,2066.4,2066.0,1.28658408]
[1773350039998,7.65363964,2066.4,2066.0,1.28658408]
[1773350041896,7.40082964,2066.4,2066.0,1.03625408]
[1773350042099,1.09009604,2066.7,2066.2,1.03625408]
[1773350042599,1.09009604,2066.7,2066.4,1.12890282]
[1773350042802,3.2104999,2066.6,2066.4,1.12890282]
[1773350043803,3.2104999,2066.6,2066.4,0.26993]
[1773350044101,4.30059594,2066.6,2066.4,0.26993]
[1773350044301,4.30059594,2066.6,2066.3,1.03625408]
[1773350044302,2.9659899,2066.6,2066.3,1.03625408]
[1773350044499,4.05608594,2066.6,2066.3,1.03625408]
[1773350044801,1.09009604,2066.5,2066.2,1.29107408]
[1773350046303,1.09009604,2066.5,2066.2,0.25482]
[1773350046803,1.09009604,2066.5,2066.2,1.29107408]
[1773350047202,4.05608594,2066.6,2066.2,1.29107408]
[1773350047904,1.09009604,2066.5,2066.2,1.29107408]
[1773350049704,7.602,2067.2,2066.2,1.29107408]
[1773350049907,1.09009604,2067.0,2066.2,1.29107408]
[1773350050704,1.09009604,2067.0,2066.2,1.52701504]
[1773350050904,1.09009604,2067.0,2066.2,1.27219504]
[1773350051198,1.09009604,2066.8,2066.0,1.28205408]
[1773350051403,1.09009604,2066.8,2066.0,1.03625408]
[1773350053104,1.09009604,2066.8,2065.9,6.36562905]
[1773350053308,1.09009604,2066.6,2065.9,7.40188313]
[1773350053609,1.09009604,2066.6,2066.0,1.03625408]
[1773350056807,1.09009604,2066.4,2065.9,7.64522762]
[1773350058113,1.09009604,2066.2,2065.9,0.26997354]
[1773350058308,1.09009604,2066.2,2065.9,0.02662905]
[1773350059914,1.09009604,2066.1,2065.8,6.58079495]
[1773350060114,4.05608594,2066.0,2065.8,6.339]
[1773350060317,1.09009604,2066.0,2065.7,8.6193315]
[1773350060514,4.05608594,2066.0,2065.7,8.6193315]
[1773350060913,4.0604637,2066.0,2065.7,8.62419423]
[1773350061117,1.13683514,2065.9,2065.7,7.58794015]
[1773350061416,1.13683514,2065.9,2065.5,15.00437629]
[1773350061606,4.10282504,2065.8,2065.5,15.00437629]
[1773350062217,4.10282504,2065.8,2065.5,15.00837443]
[1773350062515,2.77904411,2065.8,2065.6,1.08229887]
[1773350064119,2.77904411,2065.8,2065.5,15.24893421]
[1773350064315,3.91587925,2065.8,2065.5,15.49404421]
[1773350064513,2.77904411,2065.8,2065.6,1.08229887]
[1773350064718,2.77904411,2065.8,2065.6,1.32650887]
[1773350065018,3.91587925,2065.8,2065.5,14.30643865]
[1773350065319,3.91587925,2065.8,2065.5,6.74536123]
[1773350065719,3.91587925,2065.8,2065.5,6.98814123]
[1773350066719,2.77904411,2065.8,2065.5,6.98814123]
[1773350068122,2.77904411,2065.8,2065.5,4.2070096]
[1773350068421,2.77904411,2065.8,2065.6,0.25358]
[1773350068820,3.91587925,2065.8,2065.6,0.25358]
[1773350069117,1.13683514,2065.7,2065.5,3.82442629]
[1773350069321,1.13683514,2065.7,2065.5,4.06933629]
[1773350069721,3.91587925,2065.7,2065.5,4.07017629]
[1773350069923,3.91587925,2065.7,2065.5,3.82442629]
[1773350070220,1.13683514,2065.7,2065.5,0.48816792]
[1773350070417,2.77904411,2065.6,2065.5,0.48816792]
[1773350070822,2.53686411,2065.6,2065.5,0.24455792]
[1773350071423,2.53686411,2065.6,2065.5,0.48865792]
[1773350072131,3.67369925,2065.6,2065.5,0.24455792]
[1773350072424,2.53686411,2065.6,2065.5,0.24455792]
[1773350072619,2.53686411,2065.6,2065.5,0.48977792]
[1773350073723,2.53686411,2065.6,2065.5,0.24455792]
[1773350074426,2.53686411,2065.6,2065.5,0.48869792]
[1773350078525,1.13683514,2065.7,2065.5,0.48869792]
[1773350078730,2.53686411,2065.6,2065.5,0.48869792]
[1773350078935,0.00437776,2066.0,2065.6,0.35627458]
[1773350078936,3.67369925,2065.9,2065.6,0.35627458]
[1773350079132,0.00437776,2066.0,2065.6,0.60008458]
[1773350079330,1.1412129,2066.0,2065.5,0.47516604]
[1773350079527,1.1412129,2066.0,2065.6,0.23060812]
[1773350080238,1.1412129,2066.0,2065.5,0.64330698]
[1773350080437,1.1412129,2066.0,2065.6,0.39874906]
[1773350080635,1.1412129,2066.0,2065.5,0.24455792]
[1773350080939,1.1412129,2066.0,2065.5,0.64330698]
[1773350086835,1.1412129,2066.0,2065.5,0.24455792]
[1773350089942,1.1412129,2066.0,2065.5,0.56926048]
[1773350091247,1.1412129,2066.0,2065.5,8.1303379]
[1773350098144,1.1412129,2066.0,2065.6,0.24061837]
[1773350098344,1.1412129,2066.0,2065.5,8.04625371]
[1773350101343,4.05050598,2066.6,2065.8,0.20980286]
[1773350101344,1.18368803,2066.6,2065.8,0.20980286]
[1773350101543,1.18368803,2066.6,2066.0,7.56107742]
[1773350102148,1.18368803,2066.6,2065.9,14.11059834]
[1773350102345,1.18944969,2066.6,2065.9,6.34]
[1773350103343,0.80208969,2066.6,2065.9,6.34]
[1773350103945,0.80208969,2066.6,2065.7,7.56107742]
[1773350104146,0.80208969,2066.6,2065.6,14.48118762]
[1773350104347,1.18368803,2066.5,2065.6,14.48118762]
[1773350106161,1.18368803,2066.4,2065.6,6.9201102]
[1773350107351,1.18368803,2066.4,2065.7,0.5468492]
[1773350108152,1.18368803,2066.4,2065.6,6.86697302]
[1773350109065,1.18368803,2066.2,2065.5,7.80563534]
[1773350109259,1.18368803,2066.2,2065.5,0.24455792]
[1773350111262,1.18368803,2066.1,2065.5,0.00399814]
[1773350112353,1.18368803,2066.1,2065.3,0.022]
[1773350112959,1.18368803,2066.0,2065.3,0.022]
[1773350113563,1.18368803,2065.9,2065.3,0.02637775]
[1773350115257,1.18368803,2065.9,2065.1,0.022]
[1773350121064,1.09091193,2065.8,2065.1,0.48366064]
[1773350128371,1.09091193,2065.8,2065.1,0.022]
[1773350128669,1.09091193,2065.8,2064.9,0.022]
[1773350129074,0.24201,2065.7,2064.9,0.022]
[1773350129370,1.09091193,2065.6,2064.9,0.022]
[1773350130072,1.09091193,2065.6,2064.9,0.26852481]
[1773350133073,1.09091193,2065.6,2064.9,0.022]
[1773350142873,1.06323394,2065.5,2064.9,0.022]
[1773350146478,1.06323394,2065.5,2064.8,0.24183945]
[1773350146679,8.54023394,2065.5,2064.7,0.022]
[1773350146879,1.06323394,2065.4,2064.7,0.022]
[1773350148175,1.06323394,2065.3,2064.5,0.26501274]
[1773350148378,1.30529394,2065.3,2064.5,0.022]
[1773350150284,1.30529394,2065.3,2064.5,0.30499973]
[1773350152583,1.30529394,2065.3,2064.5,0.54224943]
[1773350158286,1.02478374,2065.2,2064.5,0.54224943]
[1773350158893,1.02478374,2065.2,2064.5,0.49746497]
[1773350164693,1.02478374,2065.2,2064.5,0.2592497]
[1773350166401,6.80000325,2065.2,2064.5,0.2592497]
[1773350166591,1.02478374,2065.1,2064.5,0.2592497]
[1773350166795,1.0301925,2065.1,2064.5,0.2592497]
[1773350169098,1.0301925,2065.1,2064.5,0.022]
[1773350170299,1.0301925,2065.1,2064.3,0.022]
[1773350171409,1.0301925,2065.1,2064.3,0.26070145]
[1773350173307,1.02478374,2065.0,2064.3,0.26070145]
[1773350173510,1.02478374,2065.0,2064.3,0.41627207]
[1773350173704,1.02478374,2065.0,2064.4,0.15557062]
[1773350176109,1.02478374,2065.0,2064.5,0.14097424]
[1773350176716,8.76e-06,2065.1,2064.7,0.13450995]
[1773350177011,1.02478374,2065.3,2064.7,0.13450995]
[1773350177409,1.02478374,2065.3,2064.6,0.12738225]
[1773350177811,1.03007136,2065.3,2064.6,0.13254888]
[1773350181717,1.03007136,2065.3,2064.6,0.00516663]
[1773350181917,1.03007136,2065.3,2064.6,0.10288249]
[1773350184119,1.03007136,2065.3,2064.6,0.34784462]
[1773350184319,1.03007136,2065.3,2064.7,0.05980747]
[1773350187222,0.00528762,2065.3,2064.7,0.05980747]
[1773350187523,7.62e-06,2065.3,2064.9,7.59901404]
[1773350187715,0.91494301,2065.5,2065.0,0.03793662]
[1773350188716,0.92072287,2065.5,2065.0,0.03793662]
[1773350192623,0.00577986,2065.5,2065.0,0.03793662]
[1773350192823,0.91511724,2065.8,2065.2,0.00708864]
[1773350193124,0.91511724,2065.8,2064.9,7.56107742]
[1773350193728,0.92125301,2065.8,2064.9,7.56107742]
[1773350195024,0.92125301,2065.8,2065.0,0.24209]
[1773350197328,0.92125301,2065.8,2065.0,0.49022]
[1773350200930,0.92125301,2065.8,2065.0,8.05129742]
[1773350201624,3.01e-06,2065.8,2065.5,0.85474011]
[1773350201831,0.86492375,2066.1,2065.5,0.85474011]
[1773350202330,0.86492375,2066.1,2065.6,1.15379661]
[1773350202941,0.86895946,2066.1,2065.6,1.15379661]
[1773350204032,0.86895946,2066.1,2065.6,0.89164661]
[1773350207537,0.86895946,2066.1,2065.4,1.03592623]
[1773350208025,0.86895946,2066.1,2065.3,7.13592774]
[1773350208942,0.86895946,2066.1,2065.4,0.78763151]
[1773350216141,0.86895946,2066.1,2065.3,7.3418387]
[1773350216342,0.86895946,2066.1,2065.4,0.75492276]
[1773350220346,0.86895946,2066.1,2065.3,6.58691594]
[1773350220937,0.86895946,2066.1,2065.3,7.32270493]
[1773350222645,0.86895946,2066.1,2065.3,14.88378235]
[1773350224649,0.86895946,2066.1,2065.3,8.54178235]
[1773350224845,0.86895946,2066.1,2065.3,0.98070493]
[1773350225244,0.82271132,2066.0,2065.3,0.24491594]
[1773350225447,0.82271132,2066.0,2065.2,8.27505392]
[1773350227852,0.82271132,2066.0,2065.2,8.52132462]
[1773350228352,0.82271132,2066.0,2065.2,0.9602472]
[1773350228553,0.82271132,2065.9,2065.2,0.9602472]
[1773350232159,0.82271132,2065.9,2065.3,0.6867921]
[1773350233762,0.82271132,2065.9,2065.2,0.2462707]
[1773350233958,0.82271132,2065.9,2065.1,0.67530897]
[1773350235556,0.82271132,2065.9,2065.0,0.64424292]
[1773350235956,0.82271132,2065.9,2064.9,8.20519321]
[1773350236152,0.82271132,2065.9,2064.9,8.44951474]
[1773350237063,0.82271132,2065.9,2065.0,0.63831796]
[1773350237263,0.82271132,2065.8,2065.0,0.63831796]
[1773350239661,0.82271132,2065.7,2065.0,0.63831796]
[1773350239862,0.82271132,2065.7,2064.7,0.86248334]
[1773350239863,0.82271132,2065.6,2064.7,0.86248334]
[1773350240070,0.82271132,2065.5,2064.6,0.00516663]
[1773350240665,0.82271132,2065.5,2064.6,0.75180481]
[1773350243569,0.82271132,2065.5,2064.6,0.99550786]
[1773350244270,0.82271132,2065.5,2064.6,0.60814786]
[1773350244968,0.43535132,2065.5,2064.6,0.60814786]
[1773350245365,0.43535132,2065.5,2064.6,0.61193772]
[1773350246567,0.80739858,2065.3,2064.6,0.00378986]
[1773350246865,0.80739858,2065.0,2064.6,0.75042804]
[1773350247070,0.80739858,2064.9,2064.6,0.75042804]
[1773350248167,0.80739858,2064.9,2064.6,0.00378986]
[1773350248671,0.80739858,2064.9,2064.6,0.75042804]
[1773350251572,0.80739858,2064.9,2064.6,0.00378986]
[1773350251767,0.80739858,2064.9,2064.4,0.74663818]
[1773350252662,0.80739858,2064.9,2064.3,0.26805173]